[Event "Doeberl Cup 2022"]
[Site "Canberra"]
[Date "2022.04.14"]
[Round "2.3"]
[White "Cheng, Bobby"]
[Black "Zhang, Jilin"]
[Result "1-0"]
[ECO "B38"]
[WhiteElo "2550"]
[BlackElo "2245"]
[Annotator "TA"]
[PlyCount "129"]
[EventDate "2022.04.14"]
[EventType "swiss"]
[EventCountry "AUS"]
[SourceTitle "playchess.com"]
[Source "ChessBase"]
[SourceQuality "1"]
[TimeControl "5400+30"]

{[%evp 19,129,51,61,49,54,45,44,46,48,50,56,20,66,53,70,62,68,55,66,61,92,89,143,119,120,94,111,102,102,99,104,88,101,94,139,139,135,135,137,113,108,108,121,118,122,80,123,123,123,116,130,102,130,109,134,134,126,98,128,97,79,67,76,78,98,0,126,0,133,99,123,77,100,64,88,40,41,42,184,160,184,173,197,191,213,143,137,156,300,307,1285,673,746,311,759,759,753,729,705,694,989,991,954,943,29984,29985,29985,29986,29986,29987,29987,832]} 1. Nf3 {[%emt 0:00:05]} Nf6 {[%emt 0:00:22]} 2. c4 {[%emt 0:00:06]} g6 {[%emt 0:00:22]} 3. Nc3 {[%emt 0:00:08]} c5 {[%emt 0:01:20]} 4. e4 {[%emt 0:02:08]} d6 {[%emt 0:00:14]} 5. d4 {[%emt 0:00:56]} cxd4 {[%emt 0:00:08]} 6. Nxd4 {[%emt 0:00:05]} Bg7 {[%emt 0:00:10]} 7. Be2 {[%emt 0:02:01]} O-O {[%emt 0:01:55]} 8. O-O {[%emt 0:01:45]} Nc6 {[%emt 0:00:34]} 9. Be3 {[%emt 0:00:51]} Nxd4 {[%emt 0:04:51]} 10. Bxd4 {[%emt 0:00:07]} Bd7 {[%emt 0:00:08] 10...Bd7 is better than 10...Be6.} 11. Qc2 {[%emt 0:03:23] B38: Sicilian: Maroczy Bind with 5...Bg7 and 7...0-0.} Bc6 {[%emt 0:04:51]} 12. Rad1 {[%emt 0:01:31]} Qc7 {[%emt 0:00:54][%cal Ob7b5]} 13. Nd5 {[%emt 0:08:56] White is slightly better.} Bxd5 14. exd5 {[%emt 0:00:08] [#]} Rac8 $146 {[%emt 0:11:45][%cal Ob7b5]} ({Predecessor:} 14... Rfe8 15. b3 Nd7 16. Bxg7 Kxg7 17. Rd3 a5 18. Re3 e6 19. dxe6 Rxe6 20. Qc3+ Nf6 21. Rxe6 fxe6 {½-½ (27) Costa Trillo,V (1803)-Vodicka,M (2062) LSS email 2016}) 15. Rfe1 {[%emt 0:03:02]} (15. Bxa7 $2 b6 16. Bxb6 (16. Qa4 $2 Ra8 $19) 16... Qxb6 $19) 15... b6 {[%emt 0:07:06]} (15... b5 $11 {should be considered.}) 16. b3 $14 {[%emt 0:02:27]} Ne8 {[%emt 0:11:30][%cal Ob6b5]} 17. Bg4 {[%emt 0:04:51]} Rb8 {[%emt 0:00:25]} 18. Bxg7 {[%emt 0:02:13] &Bianco is much more active. The black rooks are badly placed.} Nxg7 {[%emt 0:00:13]} 19. Qd2 {[%emt 0:03:55]} Rbe8 {[%emt 0:03:07]} 20. Re3 {[%emt 0:05:12]} Rd8 {[%emt 0:13:10]} (20... h5 $142) 21. Rde1 {[%emt 0:05:41]} Rde8 {[%emt 0:06:56]} 22. Qe2 {[%emt 0:06:02]} f5 {[%emt 0:02:13]} 23. Bf3 {[%emt 0:00:18]} Rf7 {[%emt 0:00:50]} 24. h4 {[%emt 0:03:05]} h5 {[%emt 0:01:13]} 25. Qd3 {[%emt 0:09:00]} Qc5 {[%emt 0:02:18]} 26. Bd1 {[%emt 0:01:30]} Kf8 {[%emt 0:04:04]} 27. Qc3 {[%emt 0:01:03][%cal Oe3e6] [#] Strongly threatening Re6!} Kg8 {[%emt 0:03:46]} 28. b4 {[%emt 0:02:33]} Qc7 {[%emt 0:00:17]} 29. Bb3 {[%emt 0:00:42]} Rc8 {[%emt 0:02:12]} 30. Qd4 {[%emt 0:01:14]} Qd8 {[%emt 0:02:44]} 31. Rc3 {[%emt 0:06:58]} Kh7 {[%emt 0:02:10]} 32. Qf4 {[%emt 0:01:37]} Rf6 {[%emt 0:02:40]} 33. Rce3 {[%emt 0:01:17]} Rc7 {[%emt 0:00:27]} 34. Kh2 {[%emt 0:00:18]} Rb7 {[%emt 0:06:01]} 35. R1e2 {[%emt 0:04:07]} Qf8 {[%emt 0:00:54]} 36. Kg1 {[%emt 0:01:18][%cal Bh2g1,Bg1f1,Bf1e1][%mdl 32]} Qd8 {[%emt 0:00:28]} 37. a3 {[%emt 0:00:11]} Qf8 {[%emt 0:01:06]} 38. Kf1 {[%emt 0:00:11]} Qd8 {[%emt 0:00:33]} 39. Qd4 {[%emt 0:00:35][%cal Oe3e7]} Qf8 {[%emt 0:01:09]} 40. Ke1 {[%emt 0:01:04]} Rc7 {[%emt 0:00:48]} 41. Qf4 {[%emt 0:01:00]} Rb7 {[%emt 0:01:01]} 42. Kf1 {[%emt 0:01:13]} Qd8 $1 {[%emt 0:00:11]} 43. Kg1 {[%emt 0:00:18]} Qf8 $1 {[%emt 0:00:11]} 44. Bc2 {[%emt 0:00:38]} Qd8 {[%emt 0:00:31]} 45. Bd3 {[%emt 0:00:29]} (45. g3 $142) 45... Rc7 {[%emt 0:00:58]} 46. Qd4 {[%emt 0:00:29][%cal Oe3e7]} Qf8 {[%emt 0:01:31]} 47. a4 {[%emt 0:00:24]} (47. Bc2 $16) 47... Rf7 {[%emt 0:01:06]} 48. Ra2 {[%emt 0:01:47]} f4 {[%emt 0:02:10] This costs Black the game.} (48... Ne8 $14) 49. Rf3 $36 {[%emt 0:03:13][%mdl 2048] White is really pushing.} e5 {[%emt 0:00:50]} 50. dxe6 $1 {[%emt 0:00:33]} Nxe6 {[%emt 0:00:01]} 51. Qd5 {[%emt 0:00:10][%csl LRe6,LRh5]} Ng7 {[%emt 0:00:15]} 52. Re2 {[%emt 0:01:29]} (52. Bxg6+ $2 Kxg6 53. a5 Rf5 $17) 52... Rf6 {[%emt 0:00:10]} 53. Qg5 {[%emt 0:02:09]} Rcf7 {[%emt 0:01:02]} (53... Qf7 $16 {is a better defense.} 54. a5 bxa5) 54. Rxf4 {[%emt 0:08:05]} Ne6 $2 {[%emt 0:00:15]} (54... Nf5 55. Be4 Qg7) 55. Qxh5+ {[%emt 0:00:27]} ({Weaker is} 55. Rxe6 Rxe6 56. Qxh5+ Kg7 $16) 55... Kg7 {[%emt 0:00:08] [#]} 56. Rxf6 {[%emt 0:01:01]} ({Worse is} 56. Rg4 Nf4 57. Qb5 (57. Rxg6+ $2 Rxg6 58. Bxg6 Nxh5 $19) 57... Nxd3 $15) (56. Bxg6 $142 $1 {[%csl Gg6][%cal Rh5h7][%mdl 512]} Qh8 57. Rg4 Qxh5 58. Bxh5+ Kf8 59. Bxf7 Kxf7 60. Rd2) 56... gxh5 {[%emt 0:01:43]} (56... Rxf6 57. Qg4 Nf4) 57. Rg6+ {[%emt 0:00:56]} Kh8 {[%emt 0:00:24]} 58. Rgxe6 {[%emt 0:01:12]} Qg7 {[%emt 0:00:21]} 59. Rg6 {[%emt 0:00:53]} Qa1+ {[%emt 0:00:04]} 60. Kh2 {[%emt 0:00:01] Re8+ is the strong threat.} Rf8 {[%emt 0:00:57] Against Re8} 61. Re7 {[%emt 0:01:02] Intending Rg3 and mate.} Qc3 {[%emt 0:00:41]} 62. Rh6+ {[%emt 0:00:29] White mates.} Kg8 {[%emt 0:00:01]} 63. Bh7+ {[%emt 0:00:39]} Kh8 {[%emt 0:00:01]} 64. Be4+ {[%emt 0:00:30]} Kg8 {[%emt 0:00:00]} 65. Bd5+ {[%emt 0:00:18] Weighted Error Value: White=0.34/Black=0.35} 1-0

[Event "Doeberl Cup 2022"]
[Site "Canberra"]
[Date "2022.04.14"]
[Round "2.4"]
[White "Richards, Heather S"]
[Black "Fernandez, Daniel Howard"]
[Result "0-1"]
[ECO "B12"]
[WhiteElo "2190"]
[BlackElo "2487"]
[Annotator "ChessBase"]
[PlyCount "66"]
[EventDate "2022.04.14"]
[EventType "swiss"]
[EventCountry "AUS"]
[SourceTitle "playchess.com"]
[Source "ChessBase"]
[SourceQuality "1"]
[TimeControl "5400+30"]

1. e4 {[%emt 0:00:06]} c6 {[%emt 0:00:03]} 2. d4 {[%emt 0:00:40]} d5 {[%emt 0:00:03]} 3. f3 {[%emt 0:00:11]} e6 {[%emt 0:03:48]} 4. Be3 {[%emt 0:00:37]} Qb6 {[%emt 0:07:21]} 5. Qc1 {[%emt 0:16:54]} c5 {[%emt 0:01:59]} 6. c3 {[%emt 0:01:39]} dxe4 {[%emt 0:01:33]} 7. Nd2 {[%emt 0:00:30]} Nf6 {[%emt 0:04:29]} 8. Nxe4 Nxe4 {[%emt 0:03:14]} 9. fxe4 {[%emt 0:05:40]} cxd4 {[%emt 0:01:12]} 10. cxd4 {[%emt 0:01:12]} Bb4+ {[%emt 0:01:11]} 11. Kf2 {[%emt 0:01:33]} Nd7 {[%emt 0:00:04]} 12. Nf3 {[%emt 0:00:23]} Nf6 {[%emt 0:00:13]} 13. Bd3 {[%emt 0:00:32]} Ng4+ {[%emt 0:00:24]} 14. Ke2 {[%emt 0:00:07]} Bd7 {[%emt 0:00:11]} 15. Bg1 {[%emt 0:09:32]} Bb5 {[%emt 0:01:23]} 16. Qd1 {[%emt 0:00:57]} Rc8 {[%emt 0:00:50]} 17. a3 {[%emt 0:00:29]} Be7 {[%emt 0:00:59]} 18. Ne1 {[%emt 0:01:46]} O-O {[%emt 0:00:33]} 19. Qd2 {[%emt 0:08:33]} f5 {[%emt 0:02:00]} 20. e5 {[%emt 0:02:32]} Bh4 {[%emt 0:09:07]} 21. h3 {[%emt 0:47:07]} Bxe1 {[%emt 0:00:23]} 22. Kxe1 {[%emt 0:00:00]} Bxd3 {[%emt 0:00:25]} 23. hxg4 {[%emt 0:00:00]} Be4 {[%emt 0:01:26]} 24. Rc1 {[%emt 0:00:00]} fxg4 {[%emt 0:00:32]} 25. Rc5 {[%emt 0:00:00]} Qa6 {[%emt 0:03:59]} 26. Be3 {[%emt 0:00:00]} b6 {[%emt 0:00:02]} 27. Rxc8 {[%emt 0:00:00]} Rxc8 {[%emt 0:00:26]} 28. Rg1 {[%emt 0:00:00]} Rc2 {[%emt 0:00:10]} 29. Qd1 {[%emt 0:00:00]} Rxb2 {[%emt 0:01:23]} 30. Qxg4 {[%emt 0:00:00]} Qa5+ {[%emt 0:00:04]} 31. Kd1 {[%emt 0:00:00]} Bc2+ {[%emt 0:00:31]} 32. Kc1 {[%emt 0:00:00]} Bf5 {[%emt 0:00:03]} 33. Qg5 {[%emt 0:00:00]} Rb1# {[%emt 0:56:59]} 0-1

[Event "Doeberl Cup 2022"]
[Site "Canberra"]
[Date "2022.04.14"]
[Round "2.6"]
[White "Testolin, Ryder"]
[Black "Ikeda, Junta"]
[Result "0-1"]
[ECO "E32"]
[WhiteElo "2049"]
[BlackElo "2457"]
[Annotator "TA"]
[PlyCount "106"]
[EventDate "2022.04.14"]
[EventType "swiss"]
[EventCountry "AUS"]
[SourceTitle "playchess.com"]
[Source "ChessBase"]
[SourceQuality "1"]
[TimeControl "5400+30"]

{[%evp 11,106,0,0,5,0,0,6,0,0,0,8,0,0,0,-5,0,-4,-1,-10,-8,-12,-12,0,0,17,20,38,0,0,4,14,6,60,47,82,49,74,57,50,40,51,36,90,80,85,69,77,70,73,42,29,37,37,29,178,92,125,37,36,34,71,16,178,175,143,0,89,59,65,59,68,98,116,0,56,0,0,-17,-11,-2056,0,-2486,16,-2657,-564,-29988,-713,-1417,-1351,-29991,29989,-29994,-229,-29997,-29998,-29998,-29999]} 1. d4 {[%emt 1:31:00]} Nf6 {[%emt 1:31:00]} 2. c4 {[%emt 0:00:30]} e6 {[%emt 0:00:30]} 3. Nc3 {[%emt 0:00:30]} Bb4 {[%emt 0:00:30]} 4. Qc2 {[%emt 0:00:30]} O-O {[%emt 0:00:30]} 5. Nf3 {[%emt 0:00:30]} d5 {[%emt 0:00:30]} 6. cxd5 {[%emt 0:00:30]} exd5 {[%emt 0:00:30]} 7. Bf4 {[%emt 0:00:30] E32: Nimzo-Indian: Classical (4 Qc2): 4...0-0.} Ne4 {[%emt 0:00:30]} 8. e3 {[%emt 0:00:30]} Bf5 {[%emt 0:00:30]} 9. Bd3 {[%emt 0:00:30] The position is equal.} c5 {[%emt 0:00:30]} 10. dxc5 {[%emt 0:00:30]} Nd7 {[%emt 0:00:30]} 11. c6 {[%emt 0:00:30]} bxc6 {[%emt 0:00:30]} 12. Nd4 {[%emt 0:00:30]} Bxc3+ {[%emt 0:00:30]} 13. bxc3 {[%emt 0:00:30]} Bg6 {[%emt 0:00:30]} 14. f3 $132 {[%emt 0:00:30][%mdl 2048] [#] White is not keeping still} c5 $146 {[%emt 0:00:30]} ({Predecessor:} 14... Nec5 15. Bxg6 hxg6 16. Nxc6 Qf6 17. Nd4 Rfe8 18. Kf2 Rac8 19. h4 Ne5 20. Rad1 Rb8 {1-0 (48) Maris,I (2352)-Maatman,N (2258) Groningen 2015}) 15. fxe4 {[%emt 0:00:30] And now Nc6 would win.} cxd4 {[%emt 0:00:30]} 16. cxd4 {[%emt 0:00:30]} dxe4 {[%emt 0:00:30]} 17. Be2 {[%emt 0:00:30]} ({Don't go for} 17. Bxe4 $2 Rc8 18. Bxg6 Rxc2 19. Bxc2 Qa5+ 20. Ke2 g5 $19) 17... Bh5 {[%emt 0:00:30]} 18. Bxh5 {[%emt 0:00:30] A strong pair of Bishops.} Qa5+ {[%emt 0:00:30]} 19. Qd2 {[%emt 0:00:30]} Qxh5 {[%emt 0:00:30]} 20. O-O {[%emt 0:00:30]} Qd5 {[%emt 0:00:30]} 21. Rfc1 {[%emt 0:00:30]} g5 {[%emt 0:00:30]} ({Black should play} 21... Rfc8 $11) 22. Bg3 $14 {[%emt 0:00:30]} f5 {[%emt 0:00:30]} 23. a4 {[%emt 0:00:30]} Rf7 24. Rab1 {[%emt 0:00:30]} a6 {[%emt 0:01:00]} 25. h3 {[%emt 0:00:30]} Raf8 {[%emt 0:00:30]} 26. Rf1 {[%emt 0:00:30] Prevents f4.} Rd8 {[%emt 0:00:30]} (26... Rf6 $14) 27. Qe2 {[%emt 0:00:30]} Qe6 28. a5 {[%cal Od4d5]} Rdf8 29. Qh5 Rg7 {[%cal Of5f4]} 30. Kh1 (30. Qd1 $5 {[%cal Rd4d5]}) 30... Nf6 31. Qe2 {Strongly threatening Rb6.} Nd5 {Against Rb6} 32. Be5 Rd7 (32... Nc3 $11 33. Rb6 Qxe5 34. Qc4+ Qd5 35. Qxc3 f4) 33. Qc4 (33. Rfc1 $18) 33... Re7 $16 34. Rbe1 (34. Rfc1 $16) 34... Rc8 35. Qa2 Rf7 36. Qb3 (36. Rc1 $16 {Black must now prevent Rxc8+.} Re8 37. Rfe1) 36... h6 $2 {[%emt 0:05:00]} (36... Rc3 $1 $11 {and Black is okay.} 37. Qa2 Rc8) 37. Rc1 $18 Rd8 {[%emt 0:00:30]} 38. Rce1 (38. Qa4 $16) 38... Qg6 {[%emt 0:00:30]} (38... Rc8 $11) 39. Qb1 Kh7 {[%emt 0:00:30]} 40. Rf2 Qh5 41. Kg1 {[%cal Of2f5] Hoping for Rxf5!} Qg6 42. Kh1 (42. Rb2 $1 $16) 42... Rc8 (42... Qh5 $11) 43. Qb3 (43. Rc2 $14 Qe6 44. Rxc8 Qxc8 45. Qb3) 43... Qc6 $11 44. g4 Rb7 45. Qa4 {[%mdl 8192]} f4 $2 (45... Qxa4 $19 46. Rxf5 Nxe3 $1 {[%mdl 512]}) 46. exf4 $2 {[%mdl 8192]} gxf4 $2 ({Better is} 46... Qxa4 $19 47. fxg5 Qxa5) 47. g5 $2 {[%mdl 8192]} hxg5 (47... Qxa4 $142 48. g6+ Kxg6 49. Bxf4 Qxd4) 48. Rg2 Qe6 (48... Qxa4 $142 49. h4 Qxa5 50. Rf1 Ne3 51. Rxg5 Nxf1 52. Rh5+ Kg6 53. Rg5+ Kh6 54. Rg4 Rc2 55. Rg2 Rxg2 56. Bxf4+ Kh5 57. Kxg2 Qa2+ 58. Bd2 Qxd2+ 59. Kg1 Qh2+ 60. Kxf1 Rb1#) 49. Kh2 f3 50. Rxg5 Rc2+ $4 {[%mdl 8192]} 51. Kg3 $4 {[%mdl 8192]} (51. Qxc2 {is the narrow road to win.} Nf6 52. Bxf6 Kh6 53. Qf2 $1 Rb2 54. Qxb2 Qxf6 55. Rg4 f2 56. Qc1+ e3 57. Qxe3+ Kh7 58. Qe7+ Qxe7 59. Rxe7+ Kh8 60. Rh4+ Kg8 61. Rf4 f1=B 62. Rxf1 Kh8 63. Rf8#) 51... Qh6 $2 52. h4 $2 (52. Qxc2 $19 Qxg5+ 53. Kh2) 52... Rg2+ 53. Kh3 Qe6+ {Never resign too early!  Weighted Error Value: White=1.05/Black=0.89} 0-1

[Event "Doeberl Cup 2022"]
[Site "Canberra"]
[Date "2022.04.14"]
[Round "2.7"]
[White "Kethro, Michael"]
[Black "Bjelobrk, Igor"]
[Result "0-1"]
[ECO "E04"]
[WhiteElo "2122"]
[BlackElo "2403"]
[Annotator "TA"]
[PlyCount "132"]
[EventDate "2022.04.14"]
[EventType "swiss"]
[EventCountry "AUS"]
[SourceTitle "playchess.com"]
[Source "ChessBase"]
[SourceQuality "1"]
[TimeControl "5400+30"]

{[%evp 11,132,0,0,-13,-15,-1,0,-4,0,-6,-14,0,-20,-16,0,0,0,0,0,0,11,6,21,14,14,0,0,0,0,-41,-54,-50,-43,-58,-59,-64,-58,-60,-62,-71,-17,-17,-8,-10,-14,-18,-17,-17,-17,-17,-17,-17,0,-29,-29,-45,-45,-71,-71,-71,-71,-71,-71,-71,-58,-99,-99,-99,-99,-99,-99,-99,-99,-99,-99,-99,0,0,0,0,0,0,0,-27,-27,-86,-86,-86,-86,-86,-86,-86,-86,-86,-86,-379,-379,-29973,-29974,-29978,-29979,-29979,-29980,-29980,-29981,-29981,-29982,-29984,-29983,-29983,-29984,-29984,-29985,-29984,-29985,-29985,-29986,-29987,-29988,-29990,-29991,-29995,-29996]} 1. d4 {[%emt 1:31:00]} d5 {[%emt 1:31:00]} 2. c4 {[%emt 0:00:30]} e6 {[%emt 0:00:30]} 3. Nf3 {[%emt 0:00:30]} Nf6 {[%emt 0:00:30]} 4. g3 {[%emt 0:00:30]} dxc4 {[%emt 0:00:30]} 5. Bg2 {[%emt 0:00:30]} c6 {[%emt 0:00:30]} 6. O-O {[%emt 0:00:30]} b5 {[%emt 0:00:30]} 7. a4 {[%emt 0:00:30] E04: Open Catalan: 5 Nf3.} Bb7 {[%emt 0:00:30]} 8. Ne5 {[%emt 0:00:30]} a6 {[%emt 0:00:30]} 9. b3 {[%emt 0:00:30] The position is equal.} cxb3 {[%emt 0:00:30]} 10. Bb2 {[%emt 0:00:30]} Nbd7 {[%emt 0:00:30]} 11. Nd2 {[%emt 0:00:30]} Nxe5 {[%emt 0:00:30]} 12. dxe5 {[%emt 0:00:30]} Nd5 {[%emt 0:00:30]} 13. Qxb3 {[%emt 0:00:30]} Be7 {[%emt 0:00:30]} 14. Ne4 {[%emt 0:00:30][%cal Oe4d6]} O-O {[%emt 0:00:30]} 15. Rfc1 {Prevents c5.} Qb6 16. Nd6 {[%emt 0:01:00] [#] e4 is the strong threat.} Bxd6 $146 {[%emt 0:01:00]} ({Predecessor:} 16... c5 17. axb5 axb5 18. Qxb5 Rxa1 19. Rxa1 Qxb5 20. Nxb5 Bc6 21. Nd6 Rb8 22. Bc1 h6 {½-½ (30) Lukasova,A (2213)-Senzacqua,F (2116) ICCF email 2013}) 17. exd6 {[%emt 0:00:30]} c5 {[%emt 0:00:30]} 18. e4 {[%emt 0:00:30]} c4 $1 {[%emt 0:00:30]} 19. Qf3 {[%emt 0:00:30]} c3 $1 {[%emt 0:00:30]} 20. Bxc3 {[%emt 0:00:30]} ({Of course not} 20. Rxc3 Nxc3 21. Qxc3 f6 $17) 20... Nxc3 {[%emt 0:00:30]} 21. Qxc3 {[%emt 0:00:30] And now Qc7 would win.} Qxd6 {[%emt 0:00:30]} 22. Qc7 {[%emt 0:00:30]} Qxc7 {[%emt 0:00:30]} 23. Rxc7 {[%emt 0:00:30]} Rab8 {[%emt 0:00:30]} 24. axb5 {[%emt 0:00:30]} axb5 {[%emt 0:00:30]} 25. Ra7 {[%emt 0:00:30]} Ba8 {[%emt 0:00:30]} (25... Bc8 $1 $17) 26. e5 $1 $11 {[%emt 0:00:30]} g5 {[%emt 0:00:30]} 27. Bxa8 {[%emt 0:00:30]} Rxa8 {[%emt 0:00:30][%mdl 4096] Endgame KRR-KRR} 28. Rab7 {[%emt 0:00:30]} Ra1+ {[%emt 0:00:30]} 29. Kg2 {[%emt 0:00:30]} Rb1 {[%emt 0:00:30]} 30. Rc5 {[%emt 0:00:30]} b4 {[%emt 0:00:30][%cal Bb5b4,Bb4b3][%mdl 32]} 31. Rc4 {[%emt 0:00:30]} b3 {[%emt 0:00:30]} 32. Rcb4 {[%emt 0:00:30]} Re1 {[%emt 0:00:30]} 33. R7b5 {[%emt 0:00:30]} Rd8 {[%emt 0:00:30]} 34. Rb8 {[%emt 0:00:30]} Rxb8 {[%emt 0:00:30] &Nero is more active.} 35. Rxb8+ $17 {[%emt 0:00:30] KR-KR} Kg7 {[%emt 0:00:30]} 36. Rxb3 {[%emt 0:00:30]} Rxe5 {[%emt 0:00:30]} 37. Rb4 {[%emt 0:00:30]} h5 {[%emt 0:00:30]} 38. h4 {[%emt 0:00:30] [#]} g4 $1 {[%emt 0:00:30]} 39. Rb8 {[%emt 0:00:30]} Rd5 {[%emt 0:00:30]} 40. Ra8 {[%emt 0:00:30]} e5 {[%emt 0:00:30]} 41. Re8 {[%emt 0:00:30]} f6 {[%emt 0:00:30]} 42. Kf1 {[%emt 0:00:30]} Rd2 {[%emt 0:00:30]} 43. Ra8 {[%emt 0:00:30]} f5 {[%emt 0:00:30]} ({Black should try} 43... Rc2 $17) 44. Re8 $11 {[%emt 0:00:30]} Kf6 {[%emt 0:00:30]} 45. Rf8+ $1 {[%emt 0:00:30]} Kg6 {[%emt 0:00:30]} 46. Re8 {[%emt 0:00:30]} Rd5 {[%emt 0:00:30]} 47. Re6+ {[%emt 0:00:30]} Kg7 {[%emt 0:00:30]} 48. Re7+ {[%emt 0:00:30]} (48. Rc6 $11) 48... Kf6 $17 {[%emt 0:00:30]} 49. Rh7 {[%emt 0:00:30]} Kg6 {[%emt 0:00:30] Against Rh6+} 50. Re7 {[%emt 0:00:30]} f4 {[%emt 0:00:30]} 51. gxf4 {[%emt 0:00:30]} exf4 {[%emt 0:00:30][%cal Be5f4,Bf4g3][%mdl 32] Hoping for ...Rd1+.} 52. Kg2 {[%emt 0:00:30]} Rd2 {[%emt 0:00:30]} 53. Kg1 $2 {[%emt 0:00:30][%mdl 8192] Now White is beyond hope.} (53. Re5 $17 {was necessary.}) 53... Kf5 $19 {[%emt 0:00:30] ( -> ...g3)} 54. Re8 $2 {[%emt 0:00:30] [#]} (54. Kg2 $19) 54... g3 $1 {[%emt 0:00:30] Black mates.} 55. fxg3 {[%emt 0:00:30]} fxg3 {[%emt 0:00:30]} 56. Rg8 {[%emt 0:00:30]} Kf4 {[%emt 0:00:30]} 57. Rg5 {[%emt 0:00:30]} Kf3 {[%emt 0:00:30][%cal Rd2d1]} 58. Rf5+ {[%emt 0:00:30]} Kg4 {[%emt 0:00:30]} 59. Rg5+ {[%emt 0:00:30]} Kxh4 {[%emt 0:00:30]} 60. Ra5 {[%emt 0:00:30]} Kg4 {[%emt 0:00:30]} 61. Ra4+ {[%emt 0:00:30]} Kh3 {[%emt 0:00:30][%cal Rd2d1]} 62. Ra1 {[%emt 0:00:30]} h4 {[%emt 0:00:30][%cal Bh5h4,Bh4h3,Bh3h2][%mdl 32]} 63. Rb1 {[%emt 0:00:30]} Rd4 {[%emt 0:00:30]} 64. Ra1 {[%emt 0:00:30]} Kg4 {[%emt 0:00:30]} 65. Rb1 {[%emt 0:00:30]} h3 {[%emt 0:00:30]} 66. Ra1 {[%emt 0:00:30]} h2+ {[%emt 0:00:30] Weighted Error Value: White=0.28 (precise) /Black=0.05 (flawless)} 0-1

[Event "Doeberl Cup 2022"]
[Site "Canberra"]
[Date "2022.04.15"]
[Round "3.1"]
[White "Ikeda, Junta"]
[Black "Melkumyan, Hrant"]
[Result "0-1"]
[ECO "D00"]
[WhiteElo "2457"]
[BlackElo "2649"]
[Annotator "TA"]
[PlyCount "94"]
[EventDate "2022.04.14"]
[EventType "swiss"]
[EventCountry "AUS"]
[SourceTitle "playchess.com"]
[Source "ChessBase"]
[SourceQuality "1"]
[TimeControl "5400+30"]

{[%evp 9,94,5,5,-8,0,0,20,-9,-16,-7,-6,-12,-12,-15,-15,-12,-15,-27,-16,-22,-22,-26,-14,-22,-15,-24,-19,-35,-42,-50,-50,-50,-47,-47,-48,-46,-44,-45,-50,-56,-56,-89,-69,-127,-127,-127,-127,-127,-127,-127,-128,-131,-131,-126,-128,-150,-130,-157,-111,-147,-103,-194,-113,-111,-106,-146,-150,-259,-259,-259,-259,-259,-259,-259,-259,-259,-259,-259,-227,-239,-237,-556,-499,-716,-686,-12841,-12831]} 1. d4 {[%emt 0:00:05]} d5 {[%emt 0:00:45]} 2. Nc3 {[%emt 0:00:18]} Nf6 {[%emt 0:00:51]} 3. Bf4 {[%emt 0:00:06]} Bf5 {[%emt 0:01:16]} 4. e3 {[%emt 0:02:02]} e6 {[%emt 0:00:18]} 5. Nb5 {[%emt 0:08:15]} Na6 {[%emt 0:00:28]} 6. Bd3 {[%emt 0:04:22] D00: 1 d4 d5: Unusual lines.} c6 {[%emt 0:10:53]} 7. Nc3 {[%emt 0:00:18] [#]} Bd6 $146 {[%emt 0:06:42]} ({Predecessor:} 7... Bxd3 8. Qxd3 Qb6 9. Nge2 Be7 10. O-O O-O 11. a3 h6 12. b4 Rac8 13. Rfb1 Nc7 {0-1 (61) Tica,S (2387)-Divya,D (2305) Chess.com INT 2021}) 8. Nf3 {[%emt 0:18:46] The position is equal.} Bxd3 {[%emt 0:11:39]} 9. Qxd3 {[%emt 0:00:28]} Bxf4 {[%emt 0:00:25]} 10. exf4 {[%emt 0:00:05]} O-O {[%emt 0:00:08]} 11. O-O {[%emt 0:02:13]} c5 {[%emt 0:00:06]} 12. dxc5 {[%emt 0:10:29]} Nxc5 {[%emt 0:00:30]} 13. Qe3 {[%emt 0:05:07]} Qb6 {[%emt 0:00:16]} 14. Rab1 {[%emt 0:07:32]} Rac8 {[%emt 0:00:39]} 15. Rfd1 {[%emt 0:05:24]} Rfe8 {[%emt 0:02:40]} 16. Ne5 {[%emt 0:01:52]} Ncd7 {[%emt 0:05:19][%cal Bc5d7,Bd7b6,Bb6c4][%mdl 32]} 17. Qxb6 {[%emt 0:12:38]} Nxb6 {[%emt 0:10:43]} 18. Rd2 {[%emt 0:03:49]} Nc4 {[%emt 0:02:44]} 19. Nxc4 {[%emt 0:01:45]} Rxc4 {[%emt 0:00:09]} 20. g3 {[%emt 0:00:35]} g6 {[%emt 0:07:36]} 21. f3 {[%emt 0:01:35]} Rec8 {[%emt 0:04:47]} 22. Rc1 {[%emt 0:00:38]} Ne8 {[%emt 0:01:38]} (22... Rb4 $5 23. Nd1 Ne8 $11) 23. Ne2 {[%emt 0:07:45]} Nd6 {[%emt 0:00:35]} 24. b3 {[%emt 0:01:57] Inhibits Ra4.} R4c5 {[%emt 0:01:35]} 25. Nd4 {[%emt 0:00:46]} b5 {[%emt 0:03:05][%cal Bb7b5,Bb5b4][%mdl 32]} 26. Ra1 {[%emt 0:01:31]} (26. a3 $15) 26... Nf5 $17 {[%emt 0:01:21]} 27. Nxf5 {[%emt 0:02:29]} gxf5 {[%emt 0:00:07][%mdl 4096] Endgame KRR-KRR} 28. a4 {[%emt 0:00:52]} b4 {[%emt 0:01:56]} ({Stronger than} 28... Rxc2 29. Rxc2 Rxc2 30. axb5 $15) 29. a5 {[%emt 0:00:41]} Rxc2 {[%emt 0:02:51]} 30. Rxc2 {[%emt 0:00:05]} Rxc2 {[%emt 0:00:09] KR-KR} 31. Ra4 {[%emt 0:00:09]} Rc5 {[%emt 0:01:02] &Nero is more active.} 32. Kf2 {[%emt 0:01:12]} Kg7 {[%emt 0:00:33]} 33. h3 {[%emt 0:00:33]} Rc2+ {[%emt 0:03:12]} (33... h5 $142 34. a6 Rc6) 34. Ke1 {[%emt 0:00:29]} a6 {[%emt 0:00:19]} 35. Kd1 {[%emt 0:00:32]} (35. Rxb4 $17 Rc5 36. g4) 35... Rb2 {[%emt 0:00:16]} ({Black should play} 35... Rh2 $19 36. Rxb4 Rxh3) 36. Rxb4 {[%emt 0:00:22]} Ra2 {[%emt 0:00:06]} 37. Rb7 {[%emt 0:00:36]} Rxa5 {[%emt 0:21:21] White must now prevent ...Rb5.} 38. Kc2 {[%emt 0:00:33]} (38. Ke2 $17 {was worth a try.}) 38... Ra2+ $19 {[%emt 0:00:00]} 39. Kd3 {[%emt 0:00:30]} Rh2 {[%emt 0:00:00]} 40. h4 {[%emt 0:00:31]} Rg2 {[%emt 0:00:00]} 41. Ra7 {[%emt 0:00:24]} Rxg3 {[%emt 0:00:00]} 42. Ke3 {[%emt 0:00:07]} Rh3 {[%emt 0:00:00]} 43. Rxa6 {[%emt 0:00:30]} d4+ {[%emt 0:00:00][%cal Bd5d4,Bd4d3][%mdl 32]} 44. Kf2 {[%emt 0:00:55]} Rxh4 {[%emt 0:00:00] Threatens to win with ...h5.} 45. b4 $2 {[%emt 0:00:36] [#]} (45. Kg3 Rh1 46. Rd6) 45... Rh2+ {[%emt 0:00:00] Black is clearly winning.} 46. Ke1 {[%emt 0:00:26]} (46. Kg3 $142 Rb2 47. Ra4) 46... Rb2 {[%emt 0:00:00] Strongly threatening ...h5.} 47. Ra4 {[%emt 0:00:33]} d3 {[%emt 0:00:00] Weighted Error Value: White=0.43/Black=0.07 (flawless)} 0-1